Cogmind - Beta 13 @@@ ROGUE MODE // 2024.07.15 @ 02:34:37 Player: kaj Result: Destroyed by Heavy Explosive Trap Performance ------------- Evolutions (0) 0 Regions Visited (2) 400 Robots Destroyed (12) 60 Value Destroyed (207) 207 Prototype IDs (0) 0 Alien Tech Used (0) 0 Bonus (-123) -123 TOTAL SCORE: 544 Bonus ------- Friendly Fire -123 Cogmind --------- Core Integrity 0/250 Matter 228/300 Energy 121/125 System Corruption 0% Temperature Cool (2) Movement Treading (160) Location -10/Mines Parts ------- > --- POWER (1) -------- Light Ion Engine > --- PROPULSION (2) --- Light Treads Light Treads > --- UTILITY (2) ------ Large Storage Unit Structural Scanner > --- WEAPON (2) ------- Heavy Hammer Heavy Hammer > --- INVENTORY (15) --- Light Treads Compact Wheel High-capacity Storage Unit High-capacity Matter Pod (200) High-capacity Matter Pod (200) Mini Grenade Launcher Datajack Heavy Hammer Heavy Explosive Trap Peak State ------------ > --- POWER ------------ Ion Engine > --- PROPULSION ------- Light Treads Wheel > --- UTILITY ---------- Small Storage Unit Visual Processing Unit > --- WEAPON ----------- Grenade Launcher Heavy Hammer > --- INVENTORY -------- Light Ion Engine Light Treads Compact Wheel Mini Grenade Launcher Mini Grenade Launcher Heavy Hammer Heavy Hammer [Rating: 10] Favorites ----------- Power Ion Engine Engine Ion Engine Propulsion Light Treads Treads Light Treads Leg Aluminum Leg Wheel Wheel Utility Structural Scanner Device Structural Scanner Storage Large Storage Unit Processor Visual Processing Unit Weapon Heavy Hammer Energy Gun Small Laser Ballistic Gun Light Assault Rifle Launcher Grenade Launcher Impact Weapon Heavy Hammer Build | -11 -10 -10 ------- Run | Yrd Mat Min Slots Evolved . | . . . Power . | . . . Propulsion . | . . . Utility . | . . . Weapon . | . . . Parts Attached 12 | . 7 5 Power 1 | . . 1 Engine 1 | . . 1 Core . | . . . Reactor . | . . . Propulsion 4 | . 2 2 Treads 3 | . 1 2 Leg . | . . . Wheel 1 | . 1 . Hover . | . . . Flight . | . . . Utility 3 | . 3 . Device 1 | . 1 . Storage 1 | . 1 . Processor 1 | . 1 . Hackware . | . . . Protection . | . . . Artifact . | . . . Weapon 4 | . 2 2 Energy Gun . | . . . Energy Cannon . | . . . Ballistic Gun . | . . . Ballistic Cannon . | . . . Launcher 2 | . 1 1 Special Weapon . | . . . Impact Weapon 2 | . 1 1 Slashing Weapon . | . . . Piercing Weapon . | . . . Special Melee Weapon . | . . . Unidentified Prototypes . | . . . Parts Lost 5 | . . 5 Power 1 | . . 1 Propulsion 2 | . . 2 Utility . | . . . Weapon 2 | . . 2 Highest Loss Streak 5 | . . 5 To Critical Strikes . | . . . Average Slot Usage (%) 95 | . 95 96 Engine 13 | . 14 13 Treads 12 | . 11 15 Leg 3 | . 4 . Wheel 11 | . 11 11 Device 9 | . 7 14 Storage 14 | . 14 14 Processor 2 | . 3 . Energy Gun 1 | . 2 . Ballistic Gun 1 | . 2 . Launcher 11 | . 11 12 Impact Weapon 12 | . 11 16 Naked Turns . | . . . Heaviest Build 32 | 12 32 32 Greatest Support 40 | 20 20 40 Greatest Overweight (x) 3 | . 3 3 Average Overweight (x) 1 | . 1 2 Largest Inventory Capacity 15 | 8 15 15 Average Capacity 12 | 8 11 15 Most Carried 15 | 6 11 15 Average Carried 10 | 6 8 13 Final Capacity 15 | 8 15 15 Final Carried 11 | 6 11 9 Class Distribution -------------------- 100% | Mutant Dominant Class ---------------- Mutant | -10/Materials Mutant | -10/Mines Resources | -11 -10 -10 ----------- Run | Yrd Mat Min Matter Collected 303 | 200 100 3 Remotely . | . . . Salvage Created 259 | . 201 58 Parts 10 | . 3 7 Haulers Intercepted . | . . . Recyclers Shooed . | . . . Parts Field Recycled . | . . . Retrieved Matter . | . . . Parts Self-Destructed . | . . . Prevented . | . . . Kills | -11 -10 -10 ------- Run | Yrd Mat Min Combat Hostiles Destroyed 6 | . 4 2 Cannons 1 | . 1 . AOE 2 | . . 2 Classes Destroyed 6 | . 4 2 Builder 1 | . 1 . Tunneler 2 | . 1 1 Watcher 2 | . 2 . Swarmer 2 | . . 2 Grunt 4 | . 4 . Guerrilla 1 | . . 1 Best Kill Streak 4 | . 4 2 Combat Bots Only 2 | . 2 2 Max Kills in Single Turn 2 | . 1 2 Gunslinging . | . . . Exploded 2 | . . 2 Melee . | . . . Uniques/NPCs Destroyed . | . . . Combat | -11 -10 -10 -------- Run | Yrd Mat Min Hostile Shots Fired 38 | . 18 20 Missed 5 | . 2 3 Damage Taken 960 | . 176 784 Core 281 | . 34 247 Absorbed by Shields . | . . . Core Remaining (%) 100 | 100 . . Volleys Fired 8 | . 3 5 Largest 1 | . 1 1 Hottest 30 | . 30 30 Shots Fired 8 | . 3 5 Gun . | . . . Cannon . | . . . Launcher 8 | . 3 5 Special . | . . . Kinetic . | . . . Thermal . | . . . Explosive 8 | . 3 5 Electromagnetic . | . . . Robot Hit Streak 5 | . 1 5 Robot Miss Streak 2 | . 2 . Penetration Max . | . . . Secondary Targets . | . . . Shots Hit Robots 21 | . 15 6 Core Hits 10 | . 2 8 Critical Kills . | . . . Critical Parts Destroyed 5 | . 5 . Critical Strikes 5 | . 5 . Smash 5 | . 5 . Melee Attacks 18 | . 17 1 Impact 18 | . 17 1 Slashing . | . . . Piercing . | . . . Sneak Attacks 3 | . 2 1 Combat Hostiles . | . . . Follow-up Attacks . | . . . Damage Inflicted 1060 | . 737 323 Guns . | . . . Cannons . | . . . Explosions 373 | . 143 230 Melee 687 | . 594 93 Ramming . | . . . Kinetic . | . . . Thermal . | . . . Explosive 373 | . 143 230 Electromagnetic . | . . . Impact 687 | . 594 93 Slashing . | . . . Piercing . | . . . Highest Corruption . | . . . Average Corruption . | . . . Corruption Purged . | . . . Corruption Blocked . | . . . Overload Shots . | . . . Overflow Damage 352 | . 290 62 Projectiles . | . . . Explosions 9 | . . 9 Melee 343 | . 290 53 Knockbacks 7 | . 6 1 Impact 6 | . 5 1 Kinetic . | . . . Secondary 1 | . 1 . Self-Inflicted Damage 101 | . . 101 Shots 5 | . . 5 Rammed . | . . . Targets Rammed . | . . . Kicked . | . . . Crushed . | . . . Highest Temperature 1 | . 1 . Average Temperature 1 | . 1 . Received Heat Transfer 96 | . 96 . Siege Activations . | . . . Robots Corrupted . | . . . Combat Hostiles . | . . . Parts Fried 13 | . 11 2 Impact Corruptions 13 | . 11 2 Robots Melted . | . . . Combat Hostiles . | . . . Parts Melted . | . . . Heat Transferred . | . . . Parts Sabotaged . | . . . Parts Stolen . | . . . Parts Stripped . | . . . Power Chain Reactions . | . . . Alert | -11 -10 -10 ------- Run | Yrd Mat Min Peak Influence 206 | . 206 131 Initial 79 | . . 79 Average 93 | . 97 88 Maximum Alert Level 1 | . 1 . Low Security (%) 87 | 100 81 100 Level 1 12 | . 18 . Level 2 . | . . . Level 3 . | . . . Level 4 . | . . . Level 5 . | . . . High Security . | . . . Max Security . | . . . Squads Dispatched 2 | . 2 . Investigation 1 | . 1 . Extermination . | . . . Reinforcement 1 | . 1 . Assault . | . . . Garrison . | . . . Intercept . | . . . Searches Triggered . | . . . Construction Impeded . | . . . Haulers Reinforced . | . . . Active Scanning Responses . | . . . Cargo Convoy Interrupts . | . . . Stealth | -11 -10 -10 --------- Run | Yrd Mat Min Distress Signals 2 | . 2 . Communications Jammed . | . . . Distress Signals . | . . . Times Spotted 24 | . 8 16 Peak Tracking Total 14 | . 3 14 Tactical Retreats 1 | . 1 . Traps | -11 -10 -10 ------- Run | Yrd Mat Min Traps Triggered . | . . . Indirectly . | . . . Trap Hack Attempts . | . . . Triggered . | . . . Disarmed . | . . . Reprogrammed . | . . . Reused 1 | . . 1 Traps Extracted . | . . . Installed 1 | . . 1 Triggered 1 | . . 1 Most Traps Carried 2 | . . 2 Machines | -11 -10 -10 ---------- Run | Yrd Mat Min Machines Disabled . | . . . Max in Single Turn . | . . . Machines Repaired . | . . . Machines Dismantled . | . . . Machines Sabotaged . | . . . Overloaded Fab Kills . | . . . Hacking | -11 -10 -10 --------- Run | Yrd Mat Min Machines Accessed 2 | . 2 . Terminals 2 | . 2 . Fabricators . | . . . Repair Stations . | . . . Recycling Units . | . . . Scanalyzers . | . . . Garrison Access . | . . . Total Hacks 8 | . 8 . Successful 3 | . 3 . Failed 5 | . 5 . Catastrophic 1 | . 1 . Database Lockouts . | . . . Manual 7 | . 7 . Terminals 8 | . 8 . Fabricators . | . . . Repair Stations . | . . . Recycling Units . | . . . Scanalyzers . | . . . Garrison Access . | . . . Terminal Hacks 2 | . 2 . Robot Analysis 1 | . 1 . Terminal Index 1 | . 1 . Fabricator Hacks . | . . . Repair Station Hacks . | . . . Recycling Unit Hacks . | . . . Scanalyzer . | . . . Garrison Access Hacks . | . . . Unauthorized Hacks 1 | . 1 . Terminals 1 | . 1 . Botnet 1 | . 1 . Fabricators . | . . . Repair Stations . | . . . Recycling Units . | . . . Scanalyzers . | . . . Garrison Access . | . . . Data Cores Recovered . | . . . Used . | . . . Hacking Detections 2 | . 2 . Full Trace Events 2 | . 2 . Feedback Events . | . . . Feedback Blocked . | . . . Robot Schematics Acquired . | . . . Robots Built . | . . . Authchips . | . . . Time . | . . . Total Robot Build Rating . | . . . Part Schematics Acquired . | . . . Parts Built . | . . . Authchips . | . . . Time . | . . . Total Part Build Rating . | . . . Parts Repaired . | . . . Time . | . . . Parts Recycled . | . . . Recycled Matter . | . . . Retrieved Matter . | . . . Retrieved Components . | . . . Parts Scanalyzed . | . . . Part Schematics Acquired . | . . . Parts Damaged . | . . . Bothacking | -11 -10 -10 ------------ Run | Yrd Mat Min Used RIF Installer . | . . . Robots Hacked . | . . . Non-combat . | . . . Combat . | . . . Robot Hacks Applied . | . . . Relay Couplers Released . | . . . Fabnet Peak Effective % . | . . . Robots Rewired . | . . . Allies Hacked . | . . . Hacks Repelled . | . . . Allies | -11 -10 -10 -------- Run | Yrd Mat Min Total Allies . | . . . Largest Group . | . . . Highest-Rated Group . | . . . Highest-Rated Ally . | . . . Total Orders . | . . . Ally Attacks . | . . . Total Damage . | . . . Kills . | . . . Allies Corrupted . | . . . Allies Melted . | . . . Intel | -11 -10 -10 ------- Run | Yrd Mat Min Robot Analysis Total 1 | . 1 . Derelict Logs Recovered . | . . . Drone Launches . | . . . Drone Recoveries . | . . . Exploration | -11 -10 -10 ------------- Run | Yrd Mat Min Turns Passed 411 | 3 271 137 Spaces Moved 249 | 3 160 86 Core . | . . . Treads 11 | . . 11 Legs 38 | 3 35 . Wheels 200 | . 125 75 Hover . | . . . Flight . | . . . Fastest Speed 95 | 120 95 125 Average Speed 118 | 120 112 129 Slowest Speed 160 | 120 125 160 Overloaded Moves . | . . . Propulsion Burnouts . | . . . Robots Hopped . | . . . Cave-ins Triggered . | . . . Exploration Rate (%) 21 | 2 29 34 Regions Visited 2 Branch Regions 1 Pre-discovered Areas . | . . . Known Exits Taken . | . . . Unknown Exits Taken 2 | 1 1 . Scrap Searched . | . . . Spaces Dug . | . . . Terrain Destroyed 45 | . 18 27 Melee . | . . . Projectile . | . . . AOE 45 | . 18 27 Terrain Rammed . | . . . Walls Destroyed . | . . . Machines Disabled . | . . . Actions | -11 -10 -10 --------- Run | Yrd Mat Min Total 328 | 2 220 106 Wait 21 | . 18 3 Move 247 | 2 159 86 Hop . | . . . Pick Up 13 | . 9 4 Fast Attach 3 | . 3 . Attach 8 | . 3 5 Detach . | . . . Swap 1 | . 1 . Drop 8 | . 7 1 Fire 8 | . 3 5 Melee 18 | . 17 1 Ram . | . . . Kick . | . . . Crush . | . . . Escape Stasis . | . . . Rewire . | . . . Trap 1 | . . 1 Miscellaneous . | . . . Route ------- -11/Scrapyard -10/Materials -10/Mines History --------- Turn | Location | Event 1 | -11/Scrapyard | Discovered new exit (range 3) 4 | -11/Scrapyard | Entered Materials 162 | -10/Materials | Discovered new exit (range 15) 275 | -10/Materials | Entered Mines 302 | -10/Mines | Found a hidden stash of uninstalled traps 312 | -10/Mines | Build established: Mutant 365 | -10/Mines | Assembled infested the area 370 | -10/Mines | Assisted by a Guerilla fighting off Assembled 390 | -10/Mines | Core integrity fell below 50% 396 | -10/Mines | Core integrity fell below 20% 412 | -10/Mines | Destroyed by Heavy Explosive Trap Last Messages --------------- 00381_ S-10 Pest destroyed. 00385_ The unstable cave ceiling collapses. 00387_ U-05 Engineer destroyed. 00389_ Lgt. Treads destroyed. 00389_ Ion Engine destroyed. 00390_ The unstable cave ceiling collapses. 00391_ Mni. Grenade Launcher destroyed. 00393_ The unstable cave ceiling collapses. 00393_ D-53 Grenadier destroyed. 00395_ The unstable cave ceiling collapses. 00397_ D-53 Grenadier destroyed. 00398_ The unstable cave ceiling collapses. 00407_ R-06 Scavenger collects Flight Unit. 00407_ Acquired 3 matter. 00409_ R-06 Scavenger destroyed. 00410_ Dropped Heavy Explosive Trap. 00411_ Installed Heavy Explosive Trap. 00412_ S-10 Pest triggered Heavy Explosive Trap. 00412_ An explosion rips through the floor. 00412_ S-10 Pest destroyed. Map ----- +----------------------------------------------------+ | | | | | | | | | | | | | | | | | | | | | | | | | ???????????????????????####????????????????????? | | ???????????????????????####????????????????????? | | ??????????????????????? #????????????????????? | | ???????????????????????? ?????????????????????? | | ???????????????????????? ????????????? ??????? | | ???????????????????????? ##????????## ????? | | ????????????????????? """ ##?????##### ????? | | ????????????????????? """ ##????##### ???? | | ??????????????????????""" ##????## ???? | | ???????????????????????"" ##????# " ???? | | ??????????????????????? ######? ????? | | ?????????????###??####### ####### ?????? | | ?????????????## ##### # ### ?????? | | ???????? @* r a a ##???????? | | ???????? k u###### # #####???????? | | ??????????????????######## ## a a ###????????? | | ???????????????????????## ##????????? | | ???????????????????????## ## ##????????? | | ???????????????????????## # # ##### #### | | ???????????????????????### ## ##### #### | | ???????????????????????#### # # ## | | ????????????????????????##### # # | | ???????????????????????####### | | ???????????????????????######## | | ???????????????????????## ## | | ???????????????????????## #### ? | | ???????????????????????## ###### ###?????? | | ???????????????????????## ####### ###??????? | | ???????????????????????## ##??#### ####??????? | | ???????????????????????## ####?#########???????? | | ?????????????????######## #####??######????????? | | ????????????????######### ###????????????????? | | ????????????????### ### ###???????????????? | | ????????????????## ####??????????????? | | ???????????????### ####?????????????? | | ??????????????#### ###?????????????? | | ?????????????#### ##?????????????? | | ?????????????### ##?????????????? | +----------------------------------------------------+ Best States ------------- Heat Dissipation 25 Energy Generation 10 Energy Capacity 250 Matter Stores 300 Matter Capacity 300 Sight Range 18 Terrain Scan Density 10 Evasion (%) 50 Recoil Reduction 2 Item Schematics ----------------- None Robot Schematics ------------------ None Fabricated ------------ Nothing Alien Tech Used ----------------- None Achievements -------------- None Challenges ------------ None Game ------ Seed LightningGravmagRedirector Manual? 0 Play Time 00:06:57 Cumulative 166.3 hours Start 2024.07.15 @ 02:29:15 End 2024.07.15 @ 02:34:37 Sessions 1 Manual Loads 0 Difficulty Rogue Special Mode None Game No. 257 Rogue 257 Adventurer 0 Explorer 0 Win Type - Total 0 Types 0/0/0/0/0/0/0/0/0 Lore% 47 Gallery% 60 Achievement% 44 Wizard Run 0 Options --------- Layout 0 ASCII 0 Keyboard 0 Movement Numpad Keybinds 1 Fullscreen 2 Font 18/SmallcapsGlow Map View 76x50 Zoom Use 0% Tactical HUD 1 Map Filters SATURATION(75) Filters LOW_CONTRAST(23,23,23) Steam 1 RUN: 1ae74b3a-4e1b-4183-8eb2-7e4800c50d88